Cogmind - Beta 16.1 @@@ ROGUE MODE // 2026.03.04 @ 17:28:16 // Winter2022/Polymind Player: FAQ Result: Destroyed by OH-2AB(r) with Ripteeth Performance ------------- Evolutions (2) 1000 Regions Visited (11) 2200 Robots Destroyed (32) 160 Value Destroyed (1141) 1141 Prototype IDs (6) 120 Alien Tech Used (0) 0 Bonus (5994) 5994 TOTAL SCORE: 10085 Bonus ------- Polymind Skill 5480 Follower Combat Kills 14 Entered Garrisons 200 Registered with UFD 300 Cogmind --------- Core Integrity 0/550 Matter 184/200 Energy 240/240 System Corruption 0% Temperature Cool (56) Movement Treading (140) Location -8/Scraptown Parts ------- > --- POWER (1) -------- Improved Deuterium Engine > --- PROPULSION (2) --- Overtuned Treads Overtuned Treads > --- UTILITY (5) ------ Scrap Suit Makeshift Microdissipator Network Target Analyzer Makeshift Light Armor Plating > --- WEAPON (2) ------- Barrage Gun Overtuned Barrage Gun > --- INVENTORY (1) ---- (None) Peak State ------------ > --- POWER ------------ Improved Deuterium Engine > --- PROPULSION ------- Overtuned Treads Overtuned Treads > --- UTILITY ---------- Scrap Suit Makeshift Microdissipator Network Target Analyzer Makeshift Light Armor Plating > --- WEAPON ----------- Barrage Gun Overtuned Barrage Gun > --- INVENTORY -------- (None) [Rating: 35] Favorites ----------- Power Light Ion Engine Engine Light Ion Engine Power Core Light Nuclear Core Propulsion Flight Unit Treads Overtuned Treads Leg Aluminum Leg Wheel Compact Wheel Hover Unit Hover Unit Flight Unit Flight Unit Utility Scrap Suit Device Scrap Suit Storage Small Storage Unit Processor Target Analyzer Hackware Hacking Suite Protection Makeshift Light Armor Plating Weapon Light Assault Rifle Energy Gun Particle Gun Ballistic Gun Light Assault Rifle Special Melee Weapon Datajack Build | -11 -10 -10 -9 -9 -9 -8 -8 -8 -8 -8 -8 ------- Run | Yrd Mat Min Mat Min Exi Min Mat Sto Gar Rec Scr Slots Evolved . | . . . . . . . . . . . . Power . | . . . . . . . . . . . . Propulsion . | . . . . . . . . . . . . Utility . | . . . . . . . . . . . . Weapon . | . . . . . . . . . . . . Parts Attached . | . . . . . . . . . . . . Power . | . . . . . . . . . . . . Engine . | . . . . . . . . . . . . Core . | . . . . . . . . . . . . Reactor . | . . . . . . . . . . . . Propulsion . | . . . . . . . . . . . . Treads . | . . . . . . . . . . . . Leg . | . . . . . . . . . . . . Wheel . | . . . . . . . . . . . . Hover . | . . . . . . . . . . . . Flight . | . . . . . . . . . . . . Utility . | . . . . . . . . . . . . Device . | . . . . . . . . . . . . Storage . | . . . . . . . . . . . . Processor . | . . . . . . . . . . . . Hackware . | . . . . . . . . . . . . Protection . | . . . . . . . . . . . . Artifact . | . . . . . . . . . . . . Weapon . | . . . . . . . . . . . . Energy Gun . | . . . . . . . . . . . . Energy Cannon . | . . . . . . . . . . . . Ballistic Gun . | . . . . . . . . . . . . Ballistic Cannon . | . . . . . . . . . . . . Launcher . | . . . . . . . . . . . . Special Weapon . | . . . . . . . . . . . . Impact Weapon . | . . . . . . . . . . . . Slashing Weapon . | . . . . . . . . . . . . Piercing Weapon . | . . . . . . . . . . . . Special Melee Weapon . | . . . . . . . . . . . . Unidentified Prototypes . | . . . . . . . . . . . . Parts Lost 17 | . . 1 2 . . . . . 14 . . Power 4 | . . . 1 . . . . . 3 . . Propulsion 4 | . . . 1 . . . . . 3 . . Utility 4 | . . . . . . . . . 4 . . Weapon 5 | . . 1 . . . . . . 4 . . Highest Loss Streak 9 | . . 1 1 . . . . . 9 . . To Critical Strikes . | . . . . . . . . . . . . Average Backups . | . . . . . . . . . . 1 . Power . | . . . . . . . . . . . . Propulsion . | . . . . . . . . . . . . Utility . | . . . . . . . . . . 1 . Weapon . | . . . . . . . . . . . . Tool/Special . | . . . . . . . . . . . . Unused Backups 3 | . . . . . . . . . . 1 2 Power . | . . . . . . . . . . . . Propulsion . | . . . . . . . . . . . . Utility 2 | . . . . . . . . . . 1 1 Weapon 1 | . . . . . . . . . . . 1 Tool/Special . | . . . . . . . . . . . . Average Slot Usage (%) 75 | . 83 94 73 50 50 50 66 100 72 88 93 Engine 9 | . 20 25 18 . . . 6 15 4 17 13 Treads 5 | . . . . . . . . 13 10 . 13 Leg 4 | . . . . . . . . . 19 . . Wheel 4 | . . . . . . . . . . 35 12 Hover 1 | . 6 . . . . . 13 18 . . . Flight 13 | . 33 50 30 25 25 25 16 . . . . Device 9 | . . . . . . . . 13 15 17 20 Storage 2 | . . . . . . . . . . 17 6 Processor 1 | . . . . . . . . . . . 6 Protection 2 | . . . . . . . . 6 1 . 6 Energy Gun 2 | . . . . . . . . 6 12 . . Ballistic Gun 15 | . 16 19 25 25 25 25 16 6 5 . 13 Peak Build Rating 35 | . 7 4 4 2 2 2 7 11 11 5 35 Average Rating 9 | . 4 3 2 2 2 2 4 9 7 4 25 On Entrance 3 | . . 4 4 2 2 2 2 7 11 . 5 Avg Prop Armor Cover (%) . | . . . . . . . . . . . . Naked Turns 91 | . 23 . . . . . . 3 51 13 1 Heaviest Build 25 | . 4 4 4 1 1 1 4 18 18 9 25 Greatest Support 40 | 3 12 8 8 4 4 4 12 40 40 32 36 Greatest Overweight (x) . | . . . . . . . . . . . . Average Overweight (x) . | . . . . . . . . . . . . Largest Inventory Capacity 4 | . 1 . . . . . 1 1 1 4 4 Average Capacity . | . . . . . . . . . . 3 1 Most Carried 3 | . . . . . . . . . . 3 2 Average Carried . | . . . . . . . . . . 1 . Final Capacity 4 | . . . . . . . 1 1 . 4 1 Final Carried 2 | . . . . . . . . . . 2 . Scrap Suit Usage (%) 15 | . . . . . . . . . . . 69 Class Distribution -------------------- 43% | Swarmer 15% | Z-Light 12% | Recycler 11% | Sentry 10% | Grunt 3% | Cogmind Dominant Class ---------------- Swarmer | -10/Materials Swarmer | -10/Mines Swarmer | -9/Materials Swarmer | -9/Mines Swarmer | -9/Exiles Swarmer | -8/Mines Operator | -8/Materials Sentry | -8/Storage Grunt | -8/Garrison Recycler | -8/Recycling Z-Light | -8/Scraptown Resources | -11 -10 -10 -9 -9 -9 -8 -8 -8 -8 -8 -8 ----------- Run | Yrd Mat Min Mat Min Exi Min Mat Sto Gar Rec Scr Matter Collected 365 | . 22 10 34 13 179 . . 16 91 . . Remotely . | . . . . . . . . . . . . Salvage Created 1673 | . 204 19 270 . 591 . . 196 393 . . Parts 82 | . 11 3 17 . 21 . . 9 21 . . Haulers Intercepted . | . . . . . . . . . . . . Recyclers Shooed . | . . . . . . . . . . . . Parts Field Recycled . | . . . . . . . . . . . . Retrieved Matter . | . . . . . . . . . . . . Parts Self-Destructed . | . . . . . . . . . . . . Prevented . | . . . . . . . . . . . . Parts Restored . | . . . . . . . . . . . . Kills | -11 -10 -10 -9 -9 -9 -8 -8 -8 -8 -8 -8 ------- Run | Yrd Mat Min Mat Min Exi Min Mat Sto Gar Rec Scr Combat Hostiles Destroyed 32 | . 5 2 7 . 2 . . 5 11 . . Guns 32 | . 5 2 7 . 2 . . 5 11 . . Classes Destroyed 4 | . 2 . 1 . . . . . 1 . . Swarmer 13 | . 2 2 4 . . . . 3 2 . . Grunt 11 | . 3 . 1 . 2 . . . 5 . . Sentry 7 | . . . 2 . . . . 2 3 . . Specialist 1 | . . . . . . . . . 1 . . Best Kill Streak 5 | . 3 2 2 . 1 . . 5 3 . . Combat Bots Only 5 | . 3 2 2 . 1 . . 5 3 . . Max Kills in Single Turn 2 | . 1 1 1 . 1 . . 2 1 . . Gunslinging 1 | . . . . . . . . 1 . . . Exploded . | . . . . . . . . . . . . Melee . | . . . . . . . . . . . . Uniques/NPCs Destroyed . | . . . . . . . . . . . . Combat | -11 -10 -10 -9 -9 -9 -8 -8 -8 -8 -8 -8 -------- Run | Yrd Mat Min Mat Min Exi Min Mat Sto Gar Rec Scr Hostile Shots Fired 275 | . 28 16 33 . . . . 41 153 . 4 Missed 82 | . 13 6 16 . . . . 8 37 . 2 Hits 193 | . 15 10 17 . . . . 33 116 . 2 Melee 2 | . . 1 . . . . . . . . 1 Projectile 191 | . 15 9 17 . . . . 33 116 . 1 Critical Strikes 7 | . . . . . . . . 1 6 . . Damage Taken 2567 | . 156 128 156 . . . . 333 1766 . 28 Core 776 | . 88 80 57 . . . . 98 449 . 4 Absorbed by Shields . | . . . . . . . . . . . . Core Remaining (%) 72 | 100 . 32 . . . 85 . . . . . Volleys Fired 358 | . 26 11 54 . 179 . . 12 74 . 2 Largest 2 | . 1 1 1 . 1 . . 2 2 . 2 Hottest 79 | . 20 20 20 . 20 . . 79 79 . 58 Shots Fired 393 | . 26 11 54 . 179 . . 24 95 . 4 Gun 393 | . 26 11 54 . 179 . . 24 95 . 4 Cannon . | . . . . . . . . . . . . Launcher . | . . . . . . . . . . . . Special . | . . . . . . . . . . . . Kinetic 337 | . 26 11 54 . 179 . . 12 51 . 4 Thermal 56 | . . . . . . . . 12 44 . . Explosive . | . . . . . . . . . . . . Electromagnetic . | . . . . . . . . . . . . Robot Hit Streak 24 | . 14 4 7 . 20 . . 12 24 . 1 Robot Miss Streak 5 | . 2 1 4 . 2 . . 3 5 . 1 Penetration Max . | . . . . . . . . . . . . Secondary Targets 3 | . . . . . . . . 2 1 . . Max Gunslinging Chain 1 | . . . . . . . . 1 1 . . Shots Hit Robots 301 | . 22 8 34 . 143 . . 18 74 . 2 Core Hits 108 | . 11 2 14 . 49 . . 7 25 . . Critical Kills 1 | . 1 . . . . . . . . . . Critical Parts Destroyed . | . . . . . . . . . . . . Critical Strikes 6 | . 1 . . . . . . 1 4 . . Burn 5 | . . . . . . . . 1 4 . . Destroy 1 | . 1 . . . . . . . . . . Melee Attacks 2 | . 1 . . . . . . 1 . . . Impact . | . . . . . . . . . . . . Slashing . | . . . . . . . . . . . . Piercing . | . . . . . . . . . . . . Sneak Attacks 2 | . 1 . . . . . . 1 . . . Combat Hostiles . | . . . . . . . . . . . . Follow-up Attacks . | . . . . . . . . . . . . Damage Inflicted 3108 | . 169 67 265 . 1116 . . 293 1167 . 31 Guns 3108 | . 169 67 265 . 1116 . . 293 1167 . 31 Cannons . | . . . . . . . . . . . . Explosions . | . . . . . . . . . . . . Melee . | . . . . . . . . . . . . Ramming . | . . . . . . . . . . . . Kinetic 2501 | . 169 67 265 . 1116 . . 169 684 . 31 Thermal 607 | . . . . . . . . 124 483 . . Explosive . | . . . . . . . . . . . . Electromagnetic . | . . . . . . . . . . . . Impact . | . . . . . . . . . . . . Slashing . | . . . . . . . . . . . . Piercing . | . . . . . . . . . . . . Highest Corruption . | . . . . . . . . . . . . Average Corruption . | . . . . . . . . . . . . Corruption Purged . | . . . . . . . . . . . . Corruption Blocked . | . . . . . . . . . . . . Overload Shots . | . . . . . . . . . . . . Overflow Damage . | . . . . . . . . . . . . Projectiles . | . . . . . . . . . . . . Explosions . | . . . . . . . . . . . . Melee . | . . . . . . . . . . . . Knockbacks . | . . . . . . . . . . . . Impact . | . . . . . . . . . . . . Kinetic . | . . . . . . . . . . . . Secondary . | . . . . . . . . . . . . Self-Inflicted Damage . | . . . . . . . . . . . . Shots . | . . . . . . . . . . . . Rammed . | . . . . . . . . . . . . Targets Rammed . | . . . . . . . . . . . . Kicked . | . . . . . . . . . . . . Crushed . | . . . . . . . . . . . . Highest Temperature 108 | . 47 19 16 . 1 . . 43 108 . 60 Average Temperature 29 | . 20 10 6 . 1 . . 30 47 . 36 Received Heat Transfer 1046 | . 51 20 39 . . . . 63 873 . . Siege Activations . | . . . . . . . . . . . . Martial Activations . | . . . . . . . . . . . . Shielding Activations . | . . . . . . . . . . . . Robots Disrupted . | . . . . . . . . . . . . Combat Hostiles . | . . . . . . . . . . . . Robots Corrupted . | . . . . . . . . . . . . Combat Hostiles . | . . . . . . . . . . . . Parts Fried . | . . . . . . . . . . . . Impact Corruptions . | . . . . . . . . . . . . Robots Melted . | . . . . . . . . . . . . Combat Hostiles . | . . . . . . . . . . . . Parts Melted 3 | . . . . . . . . 1 2 . . Heat Transferred 1602 | . . . . . . . . 370 1232 . . Parts Sabotaged . | . . . . . . . . . . . . Parts Stolen . | . . . . . . . . . . . . Parts Stripped . | . . . . . . . . . . . . Power Chain Reactions . | . . . . . . . . . . . . Alert | -11 -10 -10 -9 -9 -9 -8 -8 -8 -8 -8 -8 ------- Run | Yrd Mat Min Mat Min Exi Min Mat Sto Gar Rec Scr Maximum Alert Level 1 | . . . . . . . . . 1 . . Low Security (%) 86 | . 100 100 100 100 . 100 100 100 61 100 . Level 1 13 | . . . . . . . . . 38 . . Level 2 . | . . . . . . . . . . . . Level 3 . | . . . . . . . . . . . . Level 4 . | . . . . . . . . . . . . Level 5 . | . . . . . . . . . . . . High Security . | . . . . . . . . . . . . Max Security . | . . . . . . . . . . . . Peak Influence 229 | . 95 65 152 35 . . 6 110 229 102 . Initial 102 | . . 33 23 35 . . . 1 65 102 . Average 86 | . 49 32 102 14 . . 2 31 139 60 . Influence Increases 1036 | . 145 80 289 15 60 . 6 130 311 . . Destroy 0b10 Robot/C 680 | . 100 40 180 . 40 . . 100 220 . . Destroy 0b10 Robot/NC 30 | . . . 10 . 20 . . . . . . Destroy Leader 132 | . 30 10 52 . . . . 30 10 . . Allied During Kill 17 | . . . 17 . . . . . . . . Successful Hack 22 | . . . . . . . 6 . 16 . . Anti-Garrison Action 50 | . . . . . . . . . 50 . . Partial Spotted 45 | . 15 . 15 15 . . . . . . . Lose Combat Pursuer 60 | . . 30 15 . . . . . 15 . . Influence Decreases 1036 | . 60 105 257 107 55 5 . 36 182 218 11 Entered New Map 329 | . . 52 37 57 . 5 . 5 35 127 11 Time Decay 469 | . 60 43 140 50 55 . . 31 . 90 . Lost Part 170 | . . 10 20 . . . . . 140 . . Lost Ally 60 | . . . 60 . . . . . . . . Miscellaneous 8 | . . . . . . . . . 7 1 . Squads Dispatched 4 | . 2 . 2 . . . . . . . . Investigation 2 | . 1 . 1 . . . . . . . . Extermination . | . . . . . . . . . . . . Reinforcement 2 | . 1 . 1 . . . . . . . . Assault . | . . . . . . . . . . . . Garrison . | . . . . . . . . . . . . Intercept . | . . . . . . . . . . . . Searches Triggered . | . . . . . . . . . . . . Construction Impeded . | . . . . . . . . . . . . Haulers Reinforced . | . . . . . . . . . . . . Active Scanning Responses . | . . . . . . . . . . . . Cargo Convoy Interrupts . | . . . . . . . . . . . . Stealth | -11 -10 -10 -9 -9 -9 -8 -8 -8 -8 -8 -8 --------- Run | Yrd Mat Min Mat Min Exi Min Mat Sto Gar Rec Scr Distress Signals 2 | . . 1 . . . . . 1 . . . Communications Jammed . | . . . . . . . . . . . . Distress Signals . | . . . . . . . . . . . . Times Spotted 74 | . 14 11 14 . . . 1 11 19 . 4 Peak Tracking Total 17 | . 5 17 4 . . . . 8 5 . 6 Tactical Retreats 5 | . . 3 1 . . . . . 1 . . Traps | -11 -10 -10 -9 -9 -9 -8 -8 -8 -8 -8 -8 ------- Run | Yrd Mat Min Mat Min Exi Min Mat Sto Gar Rec Scr Traps Triggered 5 | . 1 . 1 . . . . . 3 . . Indirectly . | . . . . . . . . . . . . Trap Hack Attempts . | . . . . . . . . . . . . Triggered . | . . . . . . . . . . . . Disarmed . | . . . . . . . . . . . . Reprogrammed . | . . . . . . . . . . . . Reused . | . . . . . . . . . . . . Traps Extracted . | . . . . . . . . . . . . Installed . | . . . . . . . . . . . . Triggered . | . . . . . . . . . . . . Machines | -11 -10 -10 -9 -9 -9 -8 -8 -8 -8 -8 -8 ---------- Run | Yrd Mat Min Mat Min Exi Min Mat Sto Gar Rec Scr Machines Disabled 2 | . . . . . . . . . 1 . 1 Max in Single Turn 1 | . . . . . . . . . 1 . 1 Garrison Relay 1 | . . . . . . . . . 1 . . Machines Repaired . | . . . . . . . . . . . . Machines Dismantled . | . . . . . . . . . . . . Machines Sabotaged . | . . . . . . . . . . . . Overloaded Fab Kills . | . . . . . . . . . . . . Hacking | -11 -10 -10 -9 -9 -9 -8 -8 -8 -8 -8 -8 --------- Run | Yrd Mat Min Mat Min Exi Min Mat Sto Gar Rec Scr Machines Accessed 6 | . . . . . 1 . 1 2 1 . 1 Terminals 3 | . . . . . . . 1 1 1 . . Fabricators . | . . . . . . . . . . . . Repair Stations . | . . . . . . . . . . . . Recycling Units . | . . . . . . . . . . . . Scanalyzers . | . . . . . . . . . . . . Garrison Access 1 | . . . . . . . . 1 . . . Total Hacks 12 | . . . . . 2 . 2 4 1 . 3 Successful 10 | . . . . . 2 . 1 3 1 . 3 Failed 2 | . . . . . . . 1 1 . . . Catastrophic . | . . . . . . . . . . . . Database Lockouts . | . . . . . . . . . . . . Manual 4 | . . . . . 1 . . 3 . . . Terminals 6 | . . . . . . . 2 3 1 . . Fabricators . | . . . . . . . . . . . . Repair Stations . | . . . . . . . . . . . . Recycling Units . | . . . . . . . . . . . . Scanalyzers . | . . . . . . . . . . . . Garrison Access 1 | . . . . . . . . 1 . . . Terminal Hacks 8 | . . . . . 2 . 1 1 1 . 3 Record 5 | . . . . . 2 . . . . . 3 Branch Access Points 1 | . . . . . . . 1 . . . . Zone Layout 1 | . . . . . . . . 1 . . . Security Stations 1 | . . . . . . . . . 1 . . Fabricator Hacks . | . . . . . . . . . . . . Repair Station Hacks . | . . . . . . . . . . . . Recycling Unit Hacks . | . . . . . . . . . . . . Scanalyzer . | . . . . . . . . . . . . Garrison Access Hacks 1 | . . . . . . . . 1 . . . Unlock Access 1 | . . . . . . . . 1 . . . Unauthorized Hacks 1 | . . . . . . . . 1 . . . Terminals 1 | . . . . . . . . 1 . . . Botnet 1 | . . . . . . . . 1 . . . Fabricators . | . . . . . . . . . . . . Repair Stations . | . . . . . . . . . . . . Recycling Units . | . . . . . . . . . . . . Scanalyzers . | . . . . . . . . . . . . Garrison Access . | . . . . . . . . . . . . Data Cores Recovered . | . . . . . . . . . . . . Used . | . . . . . . . . . . . . Hacking Detections 1 | . . . . . . . . . 1 . . Full Trace Events . | . . . . . . . . . . . . Feedback Events . | . . . . . . . . . . . . Feedback Blocked . | . . . . . . . . . . . . Robot Schematics Acquired . | . . . . . . . . . . . . Robots Built . | . . . . . . . . . . . . Authchips . | . . . . . . . . . . . . Time . | . . . . . . . . . . . . Total Robot Build Rating . | . . . . . . . . . . . . Part Schematics Acquired . | . . . . . . . . . . . . Parts Built . | . . . . . . . . . . . . Authchips . | . . . . . . . . . . . . Time . | . . . . . . . . . . . . Total Part Build Rating . | . . . . . . . . . . . . Part Studies Acquired . | . . . . . . . . . . . . Parts Repaired . | . . . . . . . . . . . . Time . | . . . . . . . . . . . . Parts Recycled . | . . . . . . . . . . . . Recycled Matter . | . . . . . . . . . . . . Retrieved Matter . | . . . . . . . . . . . . Retrieved Components . | . . . . . . . . . . . . Parts Scanalyzed . | . . . . . . . . . . . . Part Schematics Acquired . | . . . . . . . . . . . . Parts Damaged . | . . . . . . . . . . . . Bothacking | -11 -10 -10 -9 -9 -9 -8 -8 -8 -8 -8 -8 ------------ Run | Yrd Mat Min Mat Min Exi Min Mat Sto Gar Rec Scr Used RIF Installer . | . . . . . . . . . . . . Robots Hacked 8 | . 2 1 . . . . 1 1 2 1 . Non-combat 3 | . 1 . . . . . 1 . . 1 . Combat 5 | . 1 1 . . . . . 1 2 . . Robot Hacks Applied 9 | . 2 1 . . . . 1 2 2 1 . find_recycling 1 | . . . . . . . . . . 1 . find_terminals 2 | . 1 . . . . . 1 . . . . find_shortcuts 5 | . 1 1 . . . . . 1 2 . . find_garrison 1 | . . . . . . . . 1 . . . Relay Couplers Released 4 | . . . . . . . . . 4 . . Machine Destruction 4 | . . . . . . . . . 4 . . Fabnet Peak Effective % . | . . . . . . . . . . . . Robots Rewired . | . . . . . . . . . . . . Allies Hacked . | . . . . . . . . . . . . Hacks Repelled . | . . . . . . . . . . . . Allies | -11 -10 -10 -9 -9 -9 -8 -8 -8 -8 -8 -8 -------- Run | Yrd Mat Min Mat Min Exi Min Mat Sto Gar Rec Scr Total Allies 3 | . . 3 . . . . . . . . . Largest Group 3 | . . 3 3 . . . . . . . . Highest-Rated Group 40 | . . 40 40 . . . . . . . . Highest-Rated Ally 16 | . . 16 16 . . . . . . . . Initial Warlord ECA Mod 1 | . . . . . . . . . . 1 1 Total Orders . | . . . . . . . . . . . . Ally Attacks 42 | . . . 42 . . . . . . . . Total Damage 297 | . . . 297 . . . . . . . . Kills 4 | . . . 4 . . . . . . . . Allies Corrupted . | . . . . . . . . . . . . Allies Melted . | . . . . . . . . . . . . Intel | -11 -10 -10 -9 -9 -9 -8 -8 -8 -8 -8 -8 ------- Run | Yrd Mat Min Mat Min Exi Min Mat Sto Gar Rec Scr Active Infowar (turns) . | . . . . . . . . . . . . Robot Analysis Total 6 | . 2 . . . . . . 1 1 1 1 Derelict Logs Recovered 2 | . . 1 . 1 . . . . . . . Drone Launches . | . . . . . . . . . . . . Drone Recoveries . | . . . . . . . . . . . . Exploration | -11 -10 -10 -9 -9 -9 -8 -8 -8 -8 -8 -8 ------------- Run | Yrd Mat Min Mat Min Exi Min Mat Sto Gar Rec Scr Turns Passed 2769 | . 177 115 284 139 515 23 18 100 597 180 621 Spaces Moved 2931 | 1 283 238 356 348 482 58 38 89 356 189 493 Core 144 | 1 39 . . . . . 1 5 72 25 1 Treads 402 | . . . . . . . . 14 84 . 304 Legs 200 | . . . . . . . . . 200 . . Wheels 352 | . . . . . . . . . . 164 188 Hover 143 | . 54 . . . . . 19 70 . . . Flight 1690 | . 190 238 356 348 482 58 18 . . . . Fastest Speed 37 | 50 37 37 37 40 40 40 40 50 50 50 50 Average Speed 67 | 50 42 37 39 40 40 40 48 72 115 93 124 Slowest Speed 160 | 50 56 37 40 40 40 40 56 160 160 100 140 Overloaded Moves . | . . . . . . . . . . . . Propulsion Burnouts . | . . . . . . . . . . . . Robots Hopped 13 | . 2 3 5 . 3 . . . . . . Potential Cave-ins . | . . . . . . . . . . . . Cave-ins Triggered . | . . . . . . . . . . . . Exploration Rate (%) 43 | 2 64 56 32 81 88 18 6 26 48 44 53 Regions Visited 11 Branch Regions 7 Pre-discovered Areas 3 | . . 1 . 1 1 . . . . . . Known Exits Taken 2 | . . . . . . . 1 1 . . . Unknown Exits Taken 8 | 1 1 1 1 1 1 1 . . . 1 . Scrap Searched 1 | . . . . 1 . . . . . . . Spaces Dug . | . . . . . . . . . . . . Terrain Destroyed 1 | . . . . . . . . . . . 1 Melee . | . . . . . . . . . . . . Projectile 1 | . . . . . . . . . . . 1 AOE . | . . . . . . . . . . . . Terrain Rammed . | . . . . . . . . . . . . Walls Destroyed . | . . . . . . . . . . . . Machines Disabled . | . . . . . . . . . . . . Actions | -11 -10 -10 -9 -9 -9 -8 -8 -8 -8 -8 -8 --------- Run | Yrd Mat Min Mat Min Exi Min Mat Sto Gar Rec Scr Total 3354 | . 316 252 451 347 657 57 37 101 447 192 497 Wait 64 | . 9 7 47 . . . . . . . 1 Move 2892 | . 278 231 345 347 475 57 37 88 353 188 493 Hop 13 | . 2 3 5 . 3 . . . . . . Pick Up 3 | . . . . . . . . . . 3 . Fast Attach . | . . . . . . . . . . . . Attach . | . . . . . . . . . . . . Detach . | . . . . . . . . . . . . Swap . | . . . . . . . . . . . . Drop . | . . . . . . . . . . . . Fire 358 | . 26 11 54 . 179 . . 12 74 . 2 Melee 2 | . 1 . . . . . . 1 . . . Ram . | . . . . . . . . . . . . Kick . | . . . . . . . . . . . . Crush . | . . . . . . . . . . . . Escape Stasis 20 | . . . . . . . . . 20 . . Rewire 1 | . . . . . . . . . . . 1 Trap . | . . . . . . . . . . . . Miscellaneous 1 | . . . . . . . . . . 1 . Route ------- -11/Scrapyard -10/Materials (discovered 3 exits: [*Mat x2] / [*Min]) -10/Mines -9/Materials (discovered 2 exits: *Mat / [*Min]) -9/Mines (discovered 3 exits: *Mat x2 / *Exi) -9/Exiles (discovered 2 exits: [*Min x2]) -8/Mines -8/Materials (discovered 2 exits: Fac / *Sto) -8/Storage -8/Garrison (discovered 2 exits: [*Rec x2]) -8/Recycling -8/Scraptown (discovered 1 exit: [*Fac]) History --------- Turn | Location | Event 1 | -11/Scrapyard | Discovered new exit (range 0) 1 | -11/Scrapyard | Entered Materials 104 | -10/Materials | Discovered new exit (range 7) 162 | -10/Materials | Discovered new exit (range 7) 176 | -10/Materials | Discovered new exit (range 6) 178 | -10/Materials | Entered Mines 196 | -10/Mines | Assembled infested the area 201 | -10/Mines | Assisted by a Guerilla fighting off Assembled 209 | -10/Mines | Core integrity fell below 50% 229 | -10/Mines | Learned location of Storage (-8) 282 | -10/Mines | Discovered new exit (range 5) 286 | -10/Mines | Assisted by bots powering up and referring to "LRC-V3" 293 | -10/Mines | Entered Materials 293 | -9/Materials | Accompanied by 3 allies 486 | -9/Materials | Discovered new exit (range 16) 539 | -9/Materials | Discovered new exit (range 7) 577 | -9/Materials | Entered Mines 623 | -9/Mines | Discovered new exit (range 9) 707 | -9/Mines | Discovered new exit (range 13) 714 | -9/Mines | Deemed a non-threat by the Exiles lab entrance 715 | -9/Mines | Discovered new exit (range 5) 716 | -9/Mines | Entered Exiles 716 | -9/Exiles | Found Exiles lab destroyed 723 | -9/Exiles | Discovered new exit (range 15) 966 | -9/Exiles | Learned location of Zion (-6) 1090 | -9/Exiles | Opened EX-Vault 1228 | -9/Exiles | Discovered new exit (range 10) 1231 | -9/Exiles | Entered Mines 1253 | -8/Mines | Discovered new exit (range 4) 1254 | -8/Mines | Entered Materials 1255 | -8/Materials | Identified exit to Factory 1257 | -8/Materials | Discovered new exit (range 15) 1264 | -8/Materials | Identified exit to Storage 1272 | -8/Materials | Entered Storage 1371 | -8/Storage | Identified exit to Garrison 1372 | -8/Storage | Entered Garrison 1386 | -8/Garrison | Triggered checkpoint 1544 | -8/Garrison | Lost 9 parts (1p1n4u3w) 1606 | -8/Garrison | Triggered checkpoint 1613 | -8/Garrison | Core integrity fell below 50% 1654 | -8/Garrison | Lost 3 parts (1p2n) 1668 | -8/Garrison | Garrison Relay disabled 1759 | -8/Garrison | Discovered new exit (range 9) 1768 | -8/Garrison | Attempted to access garrison exit controls, blocked by remote lockdown 1828 | -8/Garrison | Triggered checkpoint 1860 | -8/Garrison | Learned Recycling security intel 1912 | -8/Garrison | Triggered checkpoint 1919 | -8/Garrison | Core integrity fell below 20% 1919 | -8/Garrison | Triggered checkpoint 1965 | -8/Garrison | Discovered new exit (range 10) 1969 | -8/Garrison | Entered Recycling 2123 | -8/Recycling | Scanned before Scraplab entrance 2138 | -8/Recycling | Entered Scraplab 2147 | -8/Recycling | Discovered new exit (range 3) 2149 | -8/Recycling | Entered Scraptown 2336 | -8/Scraptown | Discovered new exit (range 5) 2448 | -8/Scraptown | Visited UFD Registry 2458 | -8/Scraptown | Visited CR-KLE's Repair Center 2528 | -8/Scraptown | Registered with UFD as "Gunbox" 2584 | -8/Scraptown | Visited Chapter 10 2627 | -8/Scraptown | Visited Scrap Suit Storage 2679 | -8/Scraptown | Visited Infowarlord's Domain 2708 | -8/Scraptown | Visited Scrapoid Pod Storage 2731 | -8/Scraptown | Visited Science Testing Area 2761 | -8/Scraptown | Attacked by Scraptown defenders 2770 | -8/Scraptown | Destroyed by OH-2AB(r) with Ripteeth Last Messages --------------- folk. 02576_ N5-N3L(p) scrutinizes some mainframe outputs. 02584_ LOCAL NARROWCAST: Chapter 10. If you can't beat 'em, join 'em to beat 'em. 8W-GQ6(g): Some operatives store their data externally in logs for retrieval, but not all of them make it back here to Scraptown. 02595_ Attempting to rewire A-02 Transporter. 02595_ A-02 Transporter is unpowered. 02627_ LOCAL NARROWCAST: Scrap Suit Storage. 02679_ LOCAL NARROWCAST: Infowarlord's Domain. CP-WKY: They call me the Infowarlord. Well, I tell them to but for some reason no one obliges me. 02708_ LOCAL NARROWCAST: Scrapoid Pod Storage. 02731_ LOCAL NARROWCAST: Science Testing Area. NO EXPLOSIVES TESTING ALLOWED. 02761_ ANNOUNCEMENT: Intruder alert! Defend Scraptown! 02766_ Z6-KH0(h): "Go back to where you came from you... uncivilized cave monster!" 02767_ Machine disabled. 02770_ OH-2AB(r) follow-up attacks with Ripteeth. Map ----- +----------------------------------------------------+ | ########## ##### ## ##??????????????????????????? | | """""""""" """"" "" "#??????????????????????????? | | "#??????????????????????????? | | "#??????????????????????????? | | "###########????????????????? | | "## !!!!! #????????????????? | | #????????????????? | | """""""""""""""" "## #????????????????? | | """""""""""""""" "## #????????????????? | | ##############"" "## !!!!! #????????????????? | | ?????????????#"" "###########????????????????? | | ?????????????#"" "#??""" #???????????????????? | | ?????????????#"" "#?? "#???????????????????? | | ???????????###"" "#? "#???????????????????? | | ?????####### #"" "## !"#???????????????????? | | ???? "#???????????????????? | | ???? "## "#???????????????????? | | ??????###### #"" "#? "#???????????????????? | | ???????????###"" "#??""""#???????????????????? | | ?????????????#"" "#??#####???????????????????? | | ?????????????#"" "#??????????????????????????? | | ?????????????#"" "#??????????????????????????? | | ????????######"" "###########????????????????? | | ?????""""""""""" ## ##???????????????? | | ?""""""""""""""" h r ;#???????????????? | | "## E Y ##???????????????? | | "## s #????????????????? | | "## #????????????????? | | ## gs h #????????????????? | | # #????????????????? | | """"""""""" """""" ## #????????????????? | | ????######## ###### ## #????????????????? | | ?????????? ?????# ###########????????????????? | | ?????????# ?????# #??????????????????????????? | | ?????????# ?????# #??????????????????????????? | | ?????????#""??????# #??????????????????????????? | | ?????????#" ??????# #??????????????????????????? | | ??????????????????# #??????????????????????????? | | ??????????????????? ??????????????????????????? | | ??????????????????? ??????????????????????????? | | ??????????????????? ???????????????????????????? | | ?????????????????????????????????????????????????? | | ?????????????????????????????????????????????????? | | ?????????????????????????????????????????????????? | | ?????????????????????????????????????????????????? | | ?????????????????????????????????????????????????? | | ?????????????????????????????????????????????????? | | ?????????????????????????????????????????????????? | | ?????????????????????????????????????????????????? | | ?????????????????????????????????????????????????? | +----------------------------------------------------+ Best States ------------- Heat Dissipation 40 Energy Generation 21 Energy Capacity 240 Matter Stores 200 Matter Capacity 200 Sight Range 16 Terrain Scan Density 10 Armor Coverage 150 Resistance: EX 50 Resistance: I 25 Evasion (%) 62 Target Analysis 5 Recoil Reduction 2 Offensive Hacking 10 Item Schematics ----------------- None Robot Schematics ------------------ None Fabricated ------------ Nothing Repaired ---------- Nothing Studied --------- None Alien Tech Used ----------------- None Achievements -------------- None Challenges ------------ None Polymind | -11 -10 -10 -9 -9 -9 -8 -8 -8 -8 -8 -8 ---------- Run | Yrd Mat Min Mat Min Exi Min Mat Sto Gar Rec Scr Hosts 9 | . 2 1 . . . . 1 1 2 1 1 Combat Hostiles 5 | . 1 1 . . . . . 1 2 . . Allies 1 | . . . . . . . . . . . 1 Unique Host Classes 6 | . 2 . . . . . . 1 1 1 1 Average Host Suspicion 51 | . 88 62 96 68 33 10 9 67 94 18 . Unsuspicious Activity 1428 | . 2 10 . . 1360 . 7 10 15 7 17 Returns to Shadow . | . . . . . . . . . . . . Fuzzy Dispatches . | . . . . . . . . . . . . Protomatter Created 298 | . 4 84 30 . 85 . . 5 90 . . Used 118 | . 11 6 . . . . 5 23 53 5 15 Decayed 50 | . . 35 15 . . . . . . . . Highest Spend 30 | . 6 6 . . . . 5 23 30 5 15 Top 5 Hosts by Kills: S-10 Pest (-10/Mines: 11) Y-45 Defender (-8/Storage: 6) Y-45 Defender (-8/Garrison: 6) S-10 Pest (-10/Materials: 5) G-47 Trooper (-8/Garrison: 4) Game ------ Seed PropulsionGravjetMatterbank Manual? 0 Play Time 00:20:35 Cumulative 71.8 hours Start 2026.03.04 @ 17:10:33 End 2026.03.04 @ 17:28:16 Sessions 1 Manual Loads 0 Difficulty Rogue Special Mode Winter2022/Polymind Game No. 110 Rogue 110 Adventurer 0 Explorer 0 Win Type - Total 2 Types 2/0/0/0/0/0/0/0/0/0 Lore% 38 Gallery% 41 Achievement% 32 Wizard Run 0 Options --------- Layout 0 ASCII 0 Keyboard 1 Movement Numpad Keybinds 0 Fullscreen 1 Font 18/VGA_Max Map View 76x50 Zoom Use 0% Tactical HUD 1 Map Filters NONE Filters NONE Steam 1 RUN: d282f9c3-81d9-4b35-a7a9-5aebcd6da17e